[Event "American Cup Blitz 2024"]
[Site "Saint Louis"]
[Date "2024.03.21"]
[Round "2.2"]
[White "So, Wesley"]
[Black "Hakobyan, Aram"]
[Result "1/2-1/2"]
[ECO "E41"]
[WhiteElo "2757"]
[BlackElo "2619"]
[Annotator "TA"]
[PlyCount "96"]
[EventDate "2024.03.21"]
[EventType "swiss"]
[EventCountry "USA"]
[SourceTitle "playchess.com"]
[Source "ChessBase"]
[SourceQuality "1"]
[TimeControl "180+2"]

{[%evp 17,96,38,53,5,45,-6,46,45,50,43,53,49,56,37,55,41,42,37,39,38,40,16,97,106,108,93,112,77,84,41,36,35,32,36,55,51,50,41,45,41,38,34,46,7,34,22,32,0,29,42,48,0,0,0,0,0,0,0,0,0,176,0,0,0,0,0,0,0,0,0,0,0,0,0,0,0,0,0,0,0,0]} 1. d4 {[%emt 0:00:02]} Nf6 {[%emt 0:00:01]} 2. c4 {[%emt 0:00:01]} e6 {[%emt 0:00:01]} 3. Nc3 {[%emt 0:00:01]} Bb4 {[%emt 0:00:01]} 4. e3 {[%emt 0:00:01]} Bxc3+ {[%emt 0:00:03]} 5. bxc3 {[%emt 0:00:01]} c5 {[%emt 0:00:00]} 6. Bd3 {[%emt 0:00:03]} d6 {[%emt 0:00:01]} 7. e4 {[%emt 0:00:06]} Nc6 {[%emt 0:00:02]} 8. Ne2 {[%emt 0:00:03][%cal Bg1e2,Be2g3,Bg3f5][%mdl 32]} e5 {[%emt 0:00:01]} 9. O-O {[%emt 0:00:11]} O-O {[%emt 0:00:03][%cal Rc5d4]} 10. h3 {[%emt 0:00:13]} (10. d5 $14 Ne7 11. Ng3) 10... h6 {[%emt 0:00:35][%cal Rc5d4]} 11. Kh2 {[%emt 0:00:12]} (11. d5 $14 Ne7 12. Ng3) 11... Re8 {[%emt 0:00:06]} ({Black should play} 11... cxd4 $11 12. cxd4 exd4) 12. d5 $14 {[%emt 0:00:01] White is slightly better.} Ne7 {[%emt 0:00:01]} 13. Ng3 {[%emt 0:00:18]} Ng6 {[%emt 0:00:04]} 14. Bc2 {[%emt 0:00:01]} Bd7 {[%emt 0:00:08]} 15. Rb1 {[%emt 0:00:02]} b6 {[%emt 0:00:02]} 16. Re1 {[%emt 0:00:17]} Nh7 {[%emt 0:00:17]} 17. Nf5 {[%emt 0:00:14]} Qf6 {[%emt 0:00:19]} 18. Rf1 {[%emt 0:00:29]} Ng5 {[%emt 0:00:31]} 19. Qg4 {[%emt 0:00:02][%cal Of5h6] Prevents Nf4} Bxf5 {[%emt 0:00:34]} (19... Kf8 $11 {keeps the balance.}) 20. exf5 $16 {[%emt 0:00:02]} Nf8 {[%emt 0:00:01][%cal Bg6f8,Bf8d7,Bd7e5,Be5c4][%mdl 32] Black is weak on the light squares} ({Don't go for} 20... Nf4 $2 21. h4 Nh7 22. g3 $18) 21. h4 {[%emt 0:00:14]} Ngh7 {[%emt 0:00:00]} 22. Re1 {[%emt 0:00:04] White is more active.} e4 {[%emt 0:00:21]} 23. Bxe4 {[%emt 0:00:10]} (23. Rxe4 {simplifies} Rxe4 24. Qxe4 Nd7 25. Bd2) 23... Nd7 {[%emt 0:00:01]} 24. Qg3 {[%emt 0:00:17]} Ne5 {[%emt 0:00:04]} 25. Bf4 {[%emt 0:00:01]} Nxc4 {[%emt 0:00:02]} 26. Bd3 {[%emt 0:00:02]} Ne5 {[%emt 0:00:02]} 27. Bc2 {[%emt 0:00:13]} (27. Bxe5 {simplifies} Rxe5 28. Rxe5 Qxe5 29. Qxe5 dxe5 30. c4) 27... Re7 {[%emt 0:00:06]} 28. Re3 {[%emt 0:00:06]} Rae8 {[%emt 0:00:06]} 29. Rbe1 {[%emt 0:00:01]} b5 {[%emt 0:00:04] Repels Ba4} 30. a4 {[%emt 0:00:04]} a6 {[%emt 0:00:01]} 31. Kg1 {[%emt 0:00:09]} Kh8 {[%emt 0:00:02]} 32. Kh2 {[%emt 0:00:05]} Nc4 {[%emt 0:00:02]} 33. Rxe7 Rxe7 {[%emt 0:00:00]} 34. Rxe7 {[%emt 0:00:04]} (34. Ra1 $1 $14 b4 35. Bd3) 34... Qxe7 $11 {[%emt 0:00:01]} 35. axb5 {[%emt 0:00:01]} axb5 {[%emt 0:00:01]} 36. Bd3 {[%emt 0:00:00] [#] And now Bxc4 would win.} Nf6 {[%emt 0:00:10] ...Nh5 would now be deadly.} 37. Bxc4 {[%emt 0:00:03]} bxc4 {[%emt 0:00:02]} 38. Bxd6 {[%emt 0:00:01][%mdl 4096] Endgame. KQB-KQN} Qe4 {[%emt 0:00:01] [#]} (38... Ng4+ $1 $11 39. Qxg4 (39. Kh3 Nxf2+ 40. Qxf2 Qxd6 $11) 39... Qxd6+ 40. g3 Qxd5) 39. Bxc5 $2 {[%emt 0:00:08]} ({Only move:} 39. Bf8 $1 $18 {[%csl Gf8][%cal Rg3g7]} Ne8 40. Qe3 (40. Bxc5 Qxd5 41. Qb8 Qxc5 $14) 40... Qxh4+ 41. Kg1) 39... Qxf5 {[%emt 0:00:07] The position is equal.} 40. f3 {[%emt 0:00:10] Prevents Ng4+.} Nxd5 {[%emt 0:00:06]} 41. Bd4 {[%emt 0:00:00][%csl Gd4][%cal Rg3g7]} f6 {[%emt 0:00:00]} 42. Qd6 {[%emt 0:00:06]} Kh7 {[%emt 0:00:05]} 43. Qc6 {[%emt 0:00:02]} Qf4+ {[%emt 0:00:04]} 44. Kh3 {[%emt 0:00:01]} Qf5+ {[%emt 0:00:01]} 45. Kh2 {[%emt 0:00:01]} Qf4+ {[%emt 0:00:03]} 46. Kh3 {[%emt 0:00:05]} Qf5+ {[%emt 0:00:01]} 47. Kg3 {[%emt 0:00:02]} Qf4+ {[%emt 0:00:01]} 48. Kh3 {[%emt 0:00:01]} Qf5+ {[%emt 0:00:00] Weighted Error Value: White=0.17 (very precise) /Black=0.15 (very precise) .  Loses game:     	---       	Black=1      Missed win:     	White=1     	---        Mistake:       	White=2     	Black=2      Inaccurate:     	White=4     	Black=3      OK:         	White=15    	Black=18     Best:        	White=2     	---} 1/2-1/2

[Event "American Cup Blitz 2024"]
[Site "Saint Louis"]
[Date "2024.03.21"]
[Round "2.3"]
[White "Gledura, Benjamin"]
[Black "Aronian, Levon"]
[Result "0-1"]
[ECO "B90"]
[WhiteElo "2616"]
[BlackElo "2722"]
[Annotator "TA"]
[PlyCount "63"]
[EventDate "2024.03.21"]
[EventType "swiss"]
[EventCountry "USA"]
[SourceTitle "playchess.com"]
[Source "ChessBase"]
[SourceQuality "1"]
[TimeControl "180+2"]

{[%evp 18,63,39,1,18,25,45,0,-2,-99,-112,-108,-92,-100,-84,-245,-228,-230,-238,-233,-242,-466,-459,-459,-480,-463,-459,-339,-247,-260,-233,-258,-252,-229,-135,-219,-209,-607,-609,-612,-614,-611,-212,-197,-190,-219,-157,-341]} 1. e4 {[%emt 0:00:03]} c5 {[%emt 0:00:02]} 2. Nf3 {[%emt 0:00:02]} d6 {[%emt 0:00:01]} 3. d4 {[%emt 0:00:02]} cxd4 {[%emt 0:00:01]} 4. Nxd4 {[%emt 0:00:01]} Nf6 {[%emt 0:00:01]} 5. Nc3 {[%emt 0:00:02]} a6 {[%emt 0:00:01]} 6. f3 {[%emt 0:00:04]} e5 {[%emt 0:00:02]} 7. Nb3 {[%emt 0:00:03]} Be6 {[%emt 0:00:02]} 8. Be3 {[%emt 0:00:03]} Nbd7 {[%emt 0:00:11][%cal Bb8d7,Bd7b6,Bb6a4,Ba4c3][%mdl 32]} 9. Qd2 {[%emt 0:00:03]} b5 {[%emt 0:00:05]} 10. O-O-O {[%emt 0:00:22]} Rc8 {[%emt 0:00:22]} 11. g4 {[%emt 0:00:16] g5 is the strong threat.} Nb6 {[%emt 0:00:02]} 12. Qf2 {[%emt 0:00:28]} (12. g5 $14 Nh5 13. Na5) 12... Nfd7 $11 {[%emt 0:00:04][%cal Oc8c3] Black wants to play ...Rxc3! The position is equal.} 13. Kb1 {[%emt 0:00:07] [#]} (13. Nd5 $11 {remains equal.} Nc4 14. Kb1) 13... Rxc3 $1 $17 {[%emt 0:00:08]} 14. bxc3 {[%emt 0:00:01]} Na4 {[%emt 0:00:07]} 15. Ka1 {[%emt 0:00:20]} Qc7 {[%emt 0:00:05]} 16. Qd2 {[%emt 0:00:40]} (16. c4 $17 {was necessary.}) 16... Nxc3 $19 {[%emt 0:00:38]} (16... Qxc3+ 17. Qxc3 Nxc3 18. Re1 $11) 17. Re1 {[%emt 0:00:01]} Be7 {[%emt 0:00:10]} 18. Qd3 {[%emt 0:00:21]} d5 {[%emt 0:00:24]} 19. Bd2 $2 {[%emt 0:00:02]} (19. exd5 {was forced.} Nxd5 20. Bd2) 19... d4 {[%emt 0:00:06]} 20. Bxc3 {[%emt 0:00:02]} dxc3 {[%emt 0:00:01]} (20... Qxc3+ 21. Qxc3 dxc3 22. Re3 $11) 21. h4 {[%emt 0:00:16] White is weak on the dark squares} Nc5 {[%emt 0:00:17]} 22. Qe3 {[%emt 0:00:11]} Nxb3+ {[%emt 0:00:09]} ({Don't do} 22... Na4 23. g5 $19) 23. cxb3 {[%emt 0:00:01]} Bc5 {[%emt 0:00:01]} 24. Qd3 {[%emt 0:00:06]} (24. Qxc3 $2 {is the wrong capture.} Bd4 $19) 24... O-O {[%emt 0:00:03]} 25. Qc2 {[%emt 0:00:02]} Qa5 {[%emt 0:00:23]} ({Black should try} 25... Bd4 $19 {Threatens to win with ...Qd7.} 26. Rh2 Ra8) 26. Rd1 {[%emt 0:00:05] [#]} (26. Bh3 $17 {was called for.}) 26... Bd4 $1 {[%emt 0:00:04][%cal Oe6b3][%mdl 1024] Hoping for ...Bxb3! Black has strong compensation.} 27. Kb1 $2 {[%emt 0:00:01]} (27. Rb1) 27... Qb4 {[%emt 0:00:13] And now ...a5 would win.} 28. g5 {[%emt 0:00:06]} a5 {[%emt 0:00:05]} 29. Bh3 {[%emt 0:00:02]} a4 $2 {[%emt 0:00:00]} (29... Bc4 {aiming for ...a4.} 30. Ka1 Bxb3 31. Qxb3 (31. axb3 {leads to mate.} a4 32. Rxd4 exd4 33. bxa4 Ra8) 31... c2+ 32. Rxd4 Qxd4+ 33. Qb2 Qd1+ 34. Qc1 Rd8 (34... Qxf3 $2 35. Kb2 $19) 35. Rxd1 cxd1=Q 36. Qxd1 Rxd1+ 37. Kb2 Rd2+ 38. Kb1 Rh2) 30. Bxe6 {Black is clearly better.} fxe6 {[%emt 0:00:01]} 31. Rhf1 {[%emt 0:00:06]} Ra8 {[%emt 0:00:01]} 32. f4 $2 {[%emt 0:00:06] Black took control after the opening.   Weighted Error Value: White=0.65/Black=0.36.  Loses game:     	White=2     	---        Mistake:       	White=5     	Black=1      OK:         	White=5     	Black=5      Best:        	---       	Black=4      Strong:       	---       	Black=1      Brilliant:      	---       	Black=1} (32. Rd3 $17) 0-1

[Event "American Cup Blitz 2024"]
[Site "Saint Louis"]
[Date "2024.03.21"]
[Round "2.4"]
[White "Dominguez Perez, Leinier"]
[Black "Quesada Perez, Yuniesky"]
[Result "1/2-1/2"]
[ECO "B01"]
[WhiteElo "2749"]
[BlackElo "2591"]
[Annotator "TA"]
[PlyCount "117"]
[EventDate "2024.03.21"]
[EventType "swiss"]
[EventCountry "USA"]
[SourceTitle "playchess.com"]
[Source "ChessBase"]
[SourceQuality "1"]
[TimeControl "180+2"]

{[%evp 50,117,98,100,109,105,131,140,223,220,232,231,229,231,231,187,306,283,305,291,378,378,372,346,353,341,342,310,1140,1130,1119,1039,1474,632,1526,1580,1642,1525,1434,931,803,0,1163,1166,828,0,0,0,0,0,0,0,0,0,0,0,0,0,0,0,0,0,0,0,0,0,0,0,0,0]} 1. e4 {[%emt 0:00:01]} d5 {[%emt 0:00:06]} 2. exd5 {[%emt 0:00:01]} Qxd5 {[%emt 0:00:02]} 3. Nc3 {[%emt 0:00:02]} Qd8 {[%emt 0:00:05]} 4. d4 {[%emt 0:00:02]} Nf6 {[%emt 0:00:01]} 5. Nf3 {[%emt 0:00:01]} g6 {[%emt 0:00:01]} 6. Bc4 {[%emt 0:00:05] B01: Skandinavische Verteidigung.} Bg7 {[%emt 0:00:01]} 7. O-O {[%emt 0:00:02]} O-O {[%emt 0:00:01]} 8. Re1 {[%emt 0:00:04]} a6 {[%emt 0:00:05]} 9. a4 {[%emt 0:00:04]} b6 {[%emt 0:00:05]} 10. Bg5 {[%emt 0:00:15]} Bb7 {[%emt 0:00:05]} 11. Qe2 $146 {[%emt 0:00:09]} ({Predecessor:} 11. d5 Nbd7 12. Qd2 c6 13. d6 e6 14. Ne4 c5 15. Nxf6+ Bxf6 16. Bh6 Bxf3 17. Bxf8 Qxf8 18. gxf3 {1-0 Sychev,K (2572)-Prithu,G (2472) Titled Tuesday intern op 20th Apr blitz 2021 (2)}) 11... h6 {[%emt 0:00:49]} 12. Bh4 {[%emt 0:00:18]} e6 {[%emt 0:00:09]} 13. Rad1 {[%emt 0:00:13]} c6 {[%emt 0:00:28]} 14. Ne5 {[%emt 0:00:03]} g5 {[%emt 0:00:19]} 15. Bg3 {[%emt 0:00:04]} Nd5 {[%emt 0:00:01]} 16. Bd3 {[%emt 0:00:50]} Nd7 {[%emt 0:00:15]} 17. Nxd5 {[%emt 0:00:07]} cxd5 {[%emt 0:00:11]} 18. Nxd7 {[%emt 0:00:08]} Qxd7 {[%emt 0:00:02]} 19. h4 {[%emt 0:00:04]} Qe7 {[%emt 0:00:34]} 20. hxg5 {[%emt 0:00:03]} Qxg5 {[%emt 0:00:02]} 21. Be5 {[%emt 0:00:14]} Bxe5 {[%emt 0:00:05]} 22. Qxe5 {[%emt 0:00:03]} Qxe5 {[%emt 0:00:04]} 23. Rxe5 {[%emt 0:00:01]} a5 {[%emt 0:00:05]} 24. f4 {[%emt 0:00:10]} Ba6 {[%emt 0:00:02]} 25. f5 {[%emt 0:00:03]} Bxd3 {[%emt 0:00:03]} 26. Rxd3 {[%emt 0:00:01]} (26. cxd3 Rac8 $11) 26... Rfe8 {[%emt 0:00:02]} 27. Rde3 {[%emt 0:00:01]} Rac8 {[%emt 0:00:01]} 28. c3 {[%emt 0:00:01]} (28. fxe6 $6 fxe6 29. c3 (29. Rxe6 Rxe6 30. Rxe6 Rxc2 $16) 29... Kf7 $16) 28... Rc4 {[%emt 0:00:07]} (28... Rb8 $16 29. fxe6 fxe6) 29. fxe6 $18 {[%emt 0:00:02]} fxe6 {[%emt 0:00:02]} 30. Rxe6 {[%emt 0:00:01]} Rxe6 {[%emt 0:00:03]} 31. Rxe6 {[%emt 0:00:01]} Rxa4 {[%emt 0:00:03]} 32. Rxb6 {[%emt 0:00:01]} Ra2 {[%emt 0:00:01]} (32... Ra1+ {ist wohl besser.} 33. Kh2 Rb1 34. Rxh6 Rxb2) 33. Kf2 $18 {[%emt 0:00:05]} (33. Rxh6 Rxb2 34. Ra6 Ra2 $16) 33... a4 {[%emt 0:00:01]} 34. Kf3 {[%emt 0:00:03]} (34. Rxh6 Rxb2+ 35. Ke3 Rc2 $14) 34... Kg7 {[%emt 0:00:03]} 35. g4 {[%emt 0:00:03]} Ra1 {[%emt 0:00:03]} 36. Kf4 {[%emt 0:00:03]} Rb1 {[%emt 0:00:02]} 37. Rb4 {[%emt 0:00:02]} (37. Kf5 $2 a3 38. Rb7+ (38. Rg6+ $2 Kh7 $19) 38... Kf8 $19) 37... Kf6 {[%emt 0:00:05]} 38. Rxa4 {[%emt 0:00:02]} (38. Rb6+ Kg7 39. Rb4 (39. Kf5 $2 a3 $19) 39... Kf6 40. Rxa4 (40. Rb6+ Kf7 $18) 40... Rf1+ 41. Ke3 Kg5) 38... Rxb2 $2 {[%emt 0:00:01]} (38... Rf1+ 39. Ke3 Kg5) 39. Ra6+ $18 {[%emt 0:00:01]} Kg7 {[%emt 0:00:00]} 40. Ke5 {[%emt 0:00:01]} Rc2 {[%emt 0:00:00]} 41. Rc6 {[%emt 0:00:03]} (41. Kxd5 Rxc3 42. Re6 Rc8 $11) 41... Rg2 {[%emt 0:00:02]} 42. Kxd5 {[%emt 0:00:02]} Rxg4 {[%emt 0:00:01]} 43. c4 {[%emt 0:00:03]} Rg5+ {[%emt 0:00:02]} 44. Ke4 {[%emt 0:00:01]} h5 {[%emt 0:00:02]} 45. Ra6 $2 {[%emt 0:00:02]} ({Weiss kommt nicht vorbei an} 45. Rc7+ $18 Kf6 46. c5) 45... h4 $2 {[%emt 0:00:03][%mdl 8192]} (45... Rg4+ $11 46. Kd3 h4) 46. Ra3 $18 {[%emt 0:00:02]} Kf7 {[%emt 0:00:02]} 47. c5 $2 {[%emt 0:00:02]} ({Besser ist} 47. Rh3 $18 Rh5 48. Kf4) 47... Rh5 $1 $11 {[%emt 0:00:02]} 48. Ra7+ {[%emt 0:00:08]} Ke6 {[%emt 0:00:06]} 49. d5+ {[%emt 0:00:01]} Kf6 $1 {[%emt 0:00:01]} 50. c6 {[%emt 0:00:00]} h3 {[%emt 0:00:01]} 51. c7 {[%emt 0:00:14]} (51. Ra1 $5 Ke7 $8 52. Ra7+ Ke8 53. Ra8+ Ke7 54. Ra7+ Ke8 55. Ra8+ Ke7 56. Ra7+ $11) 51... Rh8 $1 {[%emt 0:00:01]} 52. Ra2 {[%emt 0:00:07]} Ke7 {[%emt 0:00:01]} 53. Ke5 {[%emt 0:00:03]} Kd7 {[%emt 0:00:02]} 54. d6 {[%emt 0:00:02]} Rh5+ {[%emt 0:00:02]} 55. Kf4 {[%emt 0:00:03]} (55. Kd4 $5 Rh8 $8 (55... h2 56. Ra8 Rh4+ 57. Kd3 Rh3+ 58. Kd2 Kxd6 59. c8=Q) 56. Kd5 (56. Rh2 Kxd6 $11) 56... Rh5+ 57. Kc4 $11 (57. Kd4 Rh8 $11)) 55... h2 {[%emt 0:00:02]} 56. Rc2 {[%emt 0:00:01]} (56. Ra8 $5 Rc5 $8 57. Rd8+ Ke6 58. Rh8 $11) 56... Rh8 {[%emt 0:00:02]} ({Nicht} 56... h1=R 57. c8=Q+ (57. c8=R R5h4+ 58. Kf5 Rf1+ 59. Ke5 Re1+ 60. Kf5 Rf1+ 61. Ke5 Re1+ 62. Kf5 Rh5+ 63. Kg4 Rb5 $11) 57... Kxd6 58. Rc6+ Ke7 59. Rc7+ Kf6 60. Qa6#) 57. c8=Q+ {[%emt 0:00:04]} Rxc8 {[%emt 0:00:02]} 58. Rxh2 {[%emt 0:00:00]} Kxd6 {[%emt 0:00:02]} 59. Ke4 {[%emt 0:00:12]} 1/2-1/2

[Event "American Cup Blitz 2024"]
[Site "Saint Louis"]
[Date "2024.03.21"]
[Round "2.5"]
[White "Quesada Perez, Yasser"]
[Black "Le, Quang Liem"]
[Result "1/2-1/2"]
[ECO "B30"]
[WhiteElo "2584"]
[BlackElo "2731"]
[Annotator "TA"]
[PlyCount "114"]
[EventDate "2024.03.21"]
[EventType "swiss"]
[EventCountry "USA"]
[SourceTitle "playchess.com"]
[Source "ChessBase"]
[SourceQuality "1"]
[TimeControl "180+2"]

{[%evp 14,114,27,22,17,19,8,12,29,0,0,0,14,15,40,19,52,-7,27,-18,18,0,29,31,26,6,120,120,110,121,122,121,115,134,127,132,135,132,121,130,124,119,110,120,116,116,123,122,142,96,195,190,218,202,329,322,305,68,85,0,0,0,0,-7,18,18,18,19,15,15,18,15,15,0,0,0,0,0,0,0,0,0,0,0,0,0,0,-8,0,0,0,-72,0,0,0,0,0,0,0,0,0,0,0]} 1. e4 {[%emt 0:00:02]} c5 {[%emt 0:00:01]} 2. Nf3 {[%emt 0:00:02]} Nc6 {[%emt 0:00:02]} 3. Nc3 {[%emt 0:00:06]} e5 {[%emt 0:00:02]} 4. Bc4 {[%emt 0:00:04]} Be7 {[%emt 0:00:02]} 5. d3 {[%emt 0:00:04]} d6 {[%emt 0:00:02]} 6. a3 {[%emt 0:00:11]} Nf6 {[%emt 0:00:12]} 7. O-O {[%emt 0:00:03]} O-O {[%emt 0:00:03]} 8. h3 {[%emt 0:00:05]} Be6 {[%emt 0:00:09]} 9. Nd5 {[%emt 0:00:05]} Bxd5 {[%emt 0:00:30]} 10. exd5 {[%emt 0:00:01]} Nb8 {[%emt 0:00:03]} 11. b4 {[%emt 0:00:07]} Nbd7 {[%emt 0:00:06]} 12. Ba2 {[%emt 0:00:12]} Re8 {[%emt 0:00:10]} 13. Re1 {[%emt 0:00:05]} Bf8 {[%emt 0:00:05]} 14. Rb1 {[%emt 0:00:04]} g6 {[%emt 0:00:15]} 15. Bb2 {[%emt 0:00:02]} (15. Ng5 $14) 15... Bg7 {[%emt 0:00:08]} 16. Ba1 {[%emt 0:00:01]} Rc8 {[%emt 0:00:02]} 17. Nd2 {[%emt 0:00:12]} (17. Ng5 $5) 17... b6 {[%emt 0:00:17]} 18. Bc4 {[%emt 0:00:22]} Rc7 {[%emt 0:00:03]} 19. Qf3 {[%emt 0:00:06]} h6 {[%emt 0:00:04] Black is weak on the light squares} (19... cxb4 $11 20. axb4 Bh6) 20. Bb5 $1 $16 {[%emt 0:00:03]} Rf8 {[%emt 0:00:06]} 21. Bc6 {[%emt 0:00:08] White is much more active.} Nb8 {[%emt 0:00:09] [#]} 22. bxc5 $1 {[%emt 0:00:02]} Nxc6 {[%emt 0:00:27]} 23. cxb6 {[%emt 0:00:18]} axb6 {[%emt 0:00:02]} 24. dxc6 {[%emt 0:00:00]} Qa8 {[%emt 0:00:22]} 25. Nc4 {[%emt 0:00:22]} (25. Rxb6 Qa5 26. Rb4 Qxa3 $14) 25... Qxc6 {[%emt 0:00:17]} 26. Qxc6 {[%emt 0:00:05]} Rxc6 {[%emt 0:00:01]} 27. Rxb6 {[%emt 0:00:02]} Rxb6 28. Nxb6 {[%emt 0:00:00]} Rb8 {[%emt 0:00:09] [#]} 29. Nc4 {[%emt 0:00:02]} Ne8 {[%emt 0:00:03]} 30. a4 {[%emt 0:00:10]} Ra8 {[%emt 0:00:04]} 31. a5 {[%emt 0:00:01]} (31. Nb6 $142 Ra6 32. Rb1) 31... f6 {[%emt 0:00:01]} (31... d5 $16 32. Nxe5 Rxa5) 32. Bc3 $18 {[%emt 0:00:00]} Bf8 {[%emt 0:00:03]} 33. Rb1 {[%emt 0:00:08] Threatens to win with Rb7.} d5 {[%emt 0:00:05]} (33... Ra7 {was called for.} 34. Rb8 Kf7) 34. Nb6 $1 {[%emt 0:00:01][%csl LRa8,LRd5]} Rb8 {[%emt 0:00:01]} 35. a6 $2 {[%emt 0:00:02]} (35. Bb4 $18 {Strongly threatening Bxf8.} Nc7 36. Bxf8 Rxf8 37. Nd7) 35... Nc7 $14 {[%emt 0:00:01]} 36. a7 {[%emt 0:00:02]} ({White should try} 36. Rb2 $16 {And now a7 would win.} Ba3 37. a7 (37. Bxe5 $2 fxe5 38. a7 Rb7 $19)) 36... Rb7 $11 {[%emt 0:00:00]} 37. d4 {[%emt 0:00:33]} (37. a8=B $2 {too greedy.} Nxa8 38. Ba5 Bc5 $19) 37... e4 {[%emt 0:00:04]} 38. Bd2 {[%emt 0:00:15]} Rxa7 {[%emt 0:00:01]} (38... Na8 {with more complications.} 39. Rb5 Rxb6 40. Rxd5 Be7) 39. Bf4 {[%emt 0:00:02] Black must now prevent Bxc7.} Kf7 {[%emt 0:00:04]} 40. Bxc7 {[%emt 0:00:07]} Rxc7 {[%emt 0:00:02]} 41. Nxd5 {[%emt 0:00:01]} Rxc2 {[%emt 0:00:01][%mdl 4096] Endgame. KRB-KRN} 42. Rb7+ {[%emt 0:00:00]} Ke6 {[%emt 0:00:03]} 43. Ne3 {[%emt 0:00:02]} Rc1+ {[%emt 0:00:01]} 44. Kh2 {[%emt 0:00:00]} Bd6+ 45. g3 {[%emt 0:00:02]} f5 {[%emt 0:00:02]} 46. Kg2 {[%emt 0:00:02]} Ra1 {[%emt 0:00:02]} 47. Rh7 {[%emt 0:00:01]} h5 {[%emt 0:00:01]} 48. Rg7 {[%emt 0:00:02]} Kf6 {[%emt 0:00:02]} 49. Rd7 {[%emt 0:00:01]} Bf8 {[%emt 0:00:01]} 50. h4 {[%emt 0:00:03]} Ra6 {[%emt 0:00:03]} 51. Nc4 {[%emt 0:00:03]} Ke6 {[%emt 0:00:05]} 52. Rb7 {[%emt 0:00:02]} (52. Rh7 $11) 52... Bd6 {[%emt 0:00:02]} ({Better is} 52... Kd5 $17 53. Rb8 Bg7 (53... Kxc4 54. Rxf8 Kxd4 55. Rd8+ Ke5 56. Rb8 $11) 54. Ne3+ Kxd4) 53. Rg7 {[%emt 0:00:04] The position is equal.} Kf6 {[%emt 0:00:00]} 54. Rd7 {[%emt 0:00:01]} Ke6 {[%emt 0:00:02]} 55. Rg7 {[%emt 0:00:01]} Kf6 {[%emt 0:00:00]} 56. Rd7 {[%emt 0:00:01]} Ke6 {[%emt 0:00:04]} 57. Rg7 {[%emt 0:00:04]} Kf6 $1 {[%emt 0:00:01] Weighted Error Value: White=0.18 (very precise) /Black=0.19 (very precise) .  Missed win:     	White=1     	---        Mistake:       	White=4     	Black=4      Inaccurate:     	White=2     	Black=4      OK:         	White=23    	Black=16     Best:        	White=5     	Black=3      Strong:       	White=2     	Black=1} 1/2-1/2